bitfinex-derivatives/quotes_BTCF0:USTF0_20250505
["timestamp","ask_amount","ask_price","bid_price","bid_amount"]
[1746454128893,0.2120829,94298.0,94297.0,0.07912]
[1746454129193,0.2650999,94300.0,94299.0,0.2120807]
[1746454129397,0.2120721,94303.0,94302.0,0.2120717]
[1746454129891,0.2650887,94308.0,94307.0,0.2120627]
[1746454130087,0.2120731,94308.0,94307.0,0.2120627]
[1746454130280,0.2120731,94308.0,94305.0,0.0530162]
[1746454130281,0.00804675,94309.0,94308.0,0.2120604]
[1746454130485,0.2120582,94309.0,94308.0,0.2120604]
[1746454130793,0.0015,94310.0,94309.0,0.2120582]
[1746454130985,0.2135559,94310.0,94309.0,0.2120582]
[1746454131188,0.0015,94310.0,94309.0,0.2120582]
[1746454132091,0.2135559,94310.0,94309.0,0.2120582]
[1746454133380,0.00964479,94310.0,94309.0,0.2120582]
[1746454133584,0.0015,94310.0,94309.0,0.2120582]
[1746454133991,0.3608,94341.0,94309.0,0.10603199]
[1746454134191,0.3739,94329.0,94325.0,0.2120222]
[1746454134392,0.4137966,94341.0,94325.0,0.2120222]
[1746454134585,0.21201,94331.0,94325.0,0.2120222]
[1746454134787,0.2120045,94333.0,94325.0,0.2120222]
[1746454134989,0.2120094,94331.0,94325.0,0.2120222]
[1746454135297,0.5364,94332.0,94325.0,0.2120222]
[1746454135496,0.186,94330.0,94325.0,0.2120222]
[1746454136495,0.21302,94326.0,94325.0,0.2120222]
[1746454136899,0.001,94326.0,94325.0,0.2120222]
[1746454137294,0.40172,94326.0,94325.0,0.2120222]
[1746454137796,0.001,94326.0,94325.0,0.2120222]
[1746454137998,0.21302,94326.0,94325.0,0.2120222]
[1746454138302,0.001,94326.0,94325.0,0.2120222]
[1746454139100,0.001,94326.0,94325.0,0.3320222]
[1746454140490,0.0539884,94356.0,94344.0,0.2119795]
[1746454140687,0.2134773,94345.0,94344.0,0.2119795]
[1746454140900,0.0015,94345.0,94344.0,0.2119795]
[1746454141103,0.00934418,94345.0,94344.0,0.2119795]
[1746454141402,0.22132148,94345.0,94344.0,0.3897795]
[1746454141603,0.22132148,94345.0,94344.0,0.5667795]
[1746454141804,0.22132148,94345.0,94344.0,0.57082033]
[1746454141993,0.0015,94345.0,94344.0,0.57082033]
[1746454142291,0.0015,94345.0,94344.0,0.69082033]
[1746454142800,0.00042,94351.0,94344.0,0.47884083]
[1746454142993,0.00042,94351.0,94350.0,0.572766]
[1746454143798,0.00042,94351.0,94350.0,0.923966]
[1746454144193,0.00042,94351.0,94350.0,1.043966]
[1746454144995,0.346,94368.0,94355.0,0.2119548]
[1746454144996,0.00807852,94361.0,94355.0,0.2119548]
[1746454145302,0.5579285,94368.0,94367.0,0.2119278]
[1746454146001,0.346,94368.0,94367.0,0.2119278]
[1746454146505,0.346,94368.0,94367.0,0.3956278]
[1746454146691,0.346,94368.0,94367.0,0.2119278]
[1746454147594,0.5579256,94368.0,94367.0,0.2119278]
[1746454147794,0.0529826,94366.0,94362.0,0.3608]
[1746454147996,0.2119368,94363.0,94362.0,0.2119375]
[1746454149009,0.2119413,94362.0,94361.0,0.2119408]
[1746454149306,0.7318413,94362.0,94361.0,0.2119408]
[1746454149606,0.2649428,94357.0,94356.0,0.2119524]
[1746454150108,0.2649428,94357.0,94348.0,0.1738]
[1746454150109,0.2119952,94338.0,94337.0,0.2119842]
[1746454150711,0.212011,94331.0,94328.0,0.1318038]
[1746454150895,0.2120155,94328.0,94327.0,0.0015902]
[1746454151296,0.3562,94330.0,94329.0,0.2120132]
[1746454152002,0.568211,94330.0,94329.0,0.2120132]
[1746454153913,0.3562,94330.0,94329.0,0.2120132]
[1746454154906,0.568211,94330.0,94329.0,0.2120132]
[1746454155107,0.3562,94330.0,94329.0,0.2120132]
[1746454155406,0.568211,94330.0,94329.0,0.2120132]
[1746454157203,0.2120155,94328.0,94327.0,0.2136073]
[1746454158507,0.2120155,94328.0,94327.0,0.0015902]
[1746454159010,0.568212,94330.0,94329.0,0.2120132]
[1746454159216,0.3562,94330.0,94329.0,0.2120132]
[1746454161811,0.1059878,94348.0,94332.0,0.0530015]
[1746454162012,0.3179728,94348.0,94347.0,0.2119683]
[1746454162908,0.6407779,94348.0,94347.0,0.2119683]
[1746454163110,1.0015779,94348.0,94347.0,0.2119683]
[1746454167709,0.7366,94348.0,94333.0,0.0530009]
[1746454167910,0.2650046,94336.0,94335.0,0.2649946]
[1746454168615,0.0530005,94334.0,94327.0,0.0015902]
[1746454168821,0.2120155,94328.0,94327.0,0.2666019]
[1746454169219,0.3542,94328.0,94327.0,0.2666019]
[1746454169527,0.5662155,94328.0,94327.0,0.2666019]
[1746454170819,0.5662155,94328.0,94327.0,0.0015902]
[1746454171212,0.5662155,94328.0,94327.0,0.2136079]
[1746454171911,0.5662155,94328.0,94327.0,0.0015902]
[1746454172111,0.6862155,94328.0,94327.0,0.0015902]
[1746454172321,0.6862155,94328.0,94327.0,0.2136079]
[1746454172522,0.6862155,94328.0,94327.0,0.0015902]
[1746454173807,0.7922275,94328.0,94327.0,0.0015902]
[1746454179417,0.7922275,94328.0,94320.0,0.053008]
[1746454179418,0.053008,94321.0,94314.0,0.00159041]
[1746454179625,0.2120649,94306.0,94305.0,0.3982664]
[1746454179921,0.2120852,94297.0,94296.0,0.1754]
[1746454180112,0.5728852,94297.0,94296.0,0.1862]
[1746454180314,0.5728852,94297.0,94296.0,0.3982874]
[1746454180511,0.58095537,94297.0,94296.0,0.3982874]
[1746454180714,0.58095537,94297.0,94296.0,0.1862]
[1746454180918,0.2120874,94296.0,94295.0,0.0010605]
[1746454181110,0.2120874,94296.0,94292.0,0.00159079]
[1746454181111,0.2121144,94284.0,94258.0,0.23889885]
[1746454181318,0.2121504,94269.0,94268.0,0.2121483]
[1746454181524,0.2121504,94269.0,94268.0,0.3852483]
[1746454184722,0.5872504,94269.0,94268.0,0.3852483]
[1746454184918,0.5872504,94269.0,94267.0,0.1862]
[1746454184919,0.2121504,94268.0,94267.0,0.1862]
[1746454185425,0.2121549,94266.0,94265.0,0.00106083]
[1746454185625,0.2121549,94266.0,94265.0,0.21321803]
[1746454185921,0.2121549,94266.0,94265.0,0.00106083]
[1746454186123,0.3321549,94266.0,94265.0,0.21321803]
[1746454186327,0.12,94266.0,94265.0,0.21321803]
[1746454187119,0.3321549,94266.0,94265.0,0.57491803]
[1746454187318,0.2121549,94266.0,94265.0,0.57491803]
[1746454187928,0.7216,94270.0,94269.0,0.2121482]
[1746454188128,0.9337459,94270.0,94269.0,0.2121482]
[1746454188321,0.7216,94270.0,94269.0,0.2121482]
[1746454188521,0.9337459,94270.0,94269.0,0.2121482]
[1746454189523,0.5729459,94270.0,94269.0,0.2121482]
[1746454190218,0.3608,94270.0,94269.0,0.2121482]
[1746454190425,0.0530353,94272.0,94269.0,0.2651847]
[1746454190727,0.3608,94273.0,94272.0,0.2121414]
[1746454191317,0.0530309,94280.0,94279.0,0.2121257]
[1746454191517,0.3608,94293.0,94284.0,0.2121144]
[1746454191714,0.3745,94292.0,94284.0,0.2121144]
[1746454192229,0.5729122,94285.0,94284.0,0.2121144]
[1746454193028,0.5729122,94285.0,94284.0,0.5854144]
[1746454193330,0.2121122,94285.0,94284.0,0.5854144]
[1746454193514,0.5729122,94285.0,94284.0,0.5854144]
[1746454193719,0.5729122,94285.0,94284.0,0.3980144]
[1746454194426,0.9390122,94285.0,94284.0,0.3980144]
[1746454195026,0.9390122,94285.0,94284.0,0.1859]
[1746454195428,0.9390122,94285.0,94284.0,0.3980144]
[1746454195621,0.9390122,94285.0,94284.0,0.1859]
[1746454196326,0.9390122,94285.0,94284.0,0.3980144]
[1746454197929,0.7269,94285.0,94284.0,0.3980144]
[1746454198134,0.5729122,94285.0,94284.0,0.3980144]
[1746454198436,0.5729122,94285.0,94284.0,0.5793144]
[1746454200423,0.7521122,94285.0,94284.0,0.1859]
[1746454200624,0.7521122,94285.0,94284.0,0.3980144]
[1746454202731,0.3608,94285.0,94284.0,0.3980144]
[1746454203242,0.3608,94285.0,94284.0,0.1859]
[1746454203243,0.5729122,94285.0,94284.0,0.1859]
[1746454203639,0.5729122,94285.0,94284.0,0.3980144]
[1746454203938,0.7456122,94285.0,94284.0,0.3980144]
[1746454204138,0.7456122,94285.0,94284.0,0.1859]
[1746454204332,0.2121414,94272.0,94265.0,0.00106083]
[1746454204530,0.2121549,94266.0,94265.0,0.00106083]
[1746454204737,0.5729549,94266.0,94265.0,0.21321803]
[1746454206034,0.7609549,94266.0,94265.0,0.21321803]
[1746454206235,0.7609549,94266.0,94265.0,0.39501803]
[1746454206430,0.7609549,94266.0,94265.0,0.21321803]
[1746454206634,0.4001549,94266.0,94265.0,0.21321803]
[1746454209250,0.6259846,94271.0,94268.0,0.053037]
[1746454209549,0.6259846,94271.0,94270.0,0.2121459]
[1746454209850,0.8110846,94271.0,94270.0,0.2121459]
[1746454210049,0.8110846,94271.0,94270.0,0.3848459]
[1746454210753,0.5459,94271.0,94270.0,0.3848459]
[1746454210945,0.3182106,94274.0,94273.0,0.2121392]
[1746454211345,0.4940106,94274.0,94273.0,0.2121392]
[1746454211949,0.2651627,94281.0,94280.0,0.0530303]
[1746454212145,0.3181934,94281.0,94280.0,0.2651492]
[1746454212354,0.3879194,94282.0,94281.0,0.2121212]
[1746454212741,0.3879194,94282.0,94281.0,0.3865212]
[1746454213259,0.3879194,94282.0,94281.0,0.5705212]
[1746454213443,0.3879194,94282.0,94281.0,0.1744]
[1746454213649,0.2121347,94275.0,94274.0,0.2651689]
[1746454213845,0.2121392,94274.0,94273.0,0.2121382]
[1746454214051,0.3879392,94274.0,94273.0,0.2121382]
[1746454214456,0.3879392,94274.0,94266.0,0.1774]
[1746454214457,0.2121527,94268.0,94267.0,0.2121512]
[1746454214957,0.3960527,94268.0,94267.0,0.2121512]
[1746454215344,0.3960527,94268.0,94267.0,0.3882512]
[1746454218149,0.2121549,94266.0,94265.0,0.00106083]
[1746454218358,0.5729549,94266.0,94265.0,0.00106083]
[1746454218658,0.2121729,94258.0,94257.0,0.00159139]
[1746454218853,0.5729729,94258.0,94257.0,0.00159139]
[1746454219060,0.5729729,94258.0,94257.0,0.21376659]
[1746454219559,0.5729729,94258.0,94257.0,0.00159139]
[1746454220261,0.94298435,94258.0,94235.0,0.00106117]
[1746454220563,0.5730225,94236.0,94235.0,0.00106117]
[1746454220862,0.5730225,94236.0,94235.0,0.21328387]
[1746454221354,0.5730225,94236.0,94235.0,0.00106117]
[1746454221959,0.7622225,94236.0,94235.0,0.00106117]
[1746454223761,0.2122517,94223.0,94222.0,0.00159198]
[1746454223965,0.5730517,94223.0,94222.0,0.00159198]
[1746454224665,0.9405517,94223.0,94222.0,0.00159198]
[1746454225167,1.0605517,94223.0,94222.0,0.00159198]
[1746454226163,0.2122855,94208.0,94205.0,0.00106151]
[1746454226371,0.5730855,94208.0,94205.0,0.17676151]
[1746454226763,0.5730855,94208.0,94205.0,0.00106151]
[1746454226961,0.9418855,94208.0,94205.0,0.00106151]
[1746454227164,1.0618855,94208.0,94205.0,0.00106151]
[1746454228269,0.9418855,94208.0,94206.0,0.1722]
[1746454228563,0.9418855,94208.0,94205.0,0.00106151]
[1746454229160,0.21229,94206.0,94205.0,0.00106151]
[1746454229365,0.2123013,94201.0,94200.0,0.1]
[1746454229964,0.2123284,94189.0,94188.0,0.1722]
[1746454230274,0.5731284,94189.0,94188.0,0.1722]
[1746454230762,0.9291284,94189.0,94188.0,0.1722]
[1746454231161,0.0530772,94198.0,94191.0,0.0530808]
[1746454231358,0.2122979,94203.0,94202.0,0.2122991]
[1746454231868,0.2123058,94200.0,94199.0,0.2123043]
[1746454232058,0.2123058,94200.0,94199.0,0.3982043]
[1746454232567,0.2653735,94204.0,94203.0,0.2653595]
[1746454232767,0.2122904,94206.0,94205.0,0.2122878]
[1746454232971,0.2122904,94206.0,94205.0,0.3981878]
[1746454233270,0.2653614,94210.0,94209.0,0.212281]
[1746454233565,0.2122855,94208.0,94207.0,0.2122864]
[1746454233767,0.2122923,94206.0,94205.0,0.2122912]
[1746454235569,0.5724923,94206.0,94205.0,0.2122912]
[1746454236368,0.2122384,94229.0,94228.0,0.2122405]
[1746454236871,0.2122405,94228.0,94227.0,0.1886]
[1746454237066,0.4012405,94228.0,94227.0,0.1886]
[1746454237264,0.4012405,94228.0,94227.0,0.4008427]
[1746454237463,0.189,94228.0,94227.0,0.4008427]
[1746454237668,0.2122405,94228.0,94227.0,0.4008427]
[1746454237864,0.0530572,94234.0,94228.0,0.0530596]
[1746454238065,0.212236,94230.0,94229.0,0.2652952]
[1746454238270,0.573036,94230.0,94229.0,0.2652952]
[1746454238966,0.2122405,94228.0,94227.0,0.1886]
[1746454239160,0.2122405,94228.0,94227.0,0.4008427]
[1746454239560,0.3608,94230.0,94229.0,0.2122382]
[1746454239766,0.265289,94233.0,94232.0,0.2652843]
[1746454240068,0.2122315,94233.0,94232.0,0.2652843]
[1746454240468,0.001,94236.0,94235.0,0.2122247]
[1746454240667,0.001,94266.0,94235.0,0.3608]
[1746454240869,0.21376435,94264.0,94263.0,0.2121617]
[1746454241065,0.21375235,94264.0,94263.0,0.2121617]
[1746454242471,0.00159295,94264.0,94263.0,0.2121617]
[1746454242975,0.21375235,94264.0,94263.0,0.2121617]
[1746454243179,0.21375235,94264.0,94263.0,0.3321617]
[1746454245168,0.21375235,94264.0,94263.0,0.2121617]
[1746454249078,0.2121864,94252.0,94246.0,0.07788]
[1746454249270,0.3608,94252.0,94235.0,0.3608]
[1746454249576,0.0530549,94238.0,94237.0,0.2122157]
[1746454249981,0.2652706,94241.0,94240.0,0.2122134]
[1746454250478,0.3608,94252.0,94251.0,0.2121887]
[1746454250479,0.5729925,94252.0,94251.0,0.2121887]
[1746454250670,0.2121925,94252.0,94251.0,0.2121887]
[1746454252077,0.2121925,94252.0,94251.0,0.5624887]
[1746454252277,0.2652087,94262.0,94261.0,0.2121662]
[1746454252779,0.2652323,94256.0,94255.0,0.2652128]
[1746454252973,0.2652324,94254.0,94253.0,0.2652286]
[1746454253165,0.2121864,94252.0,94251.0,0.5624884]
[1746454253674,0.2121864,94252.0,94251.0,0.1706]
[1746454254573,0.2121864,94252.0,94251.0,0.3827887]
[1746454254777,0.2121864,94252.0,94251.0,0.1706]
[1746454254977,0.2122089,94243.0,94242.0,0.2122069]
[1746454255176,0.2122089,94243.0,94242.0,0.5076069]
[1746454255378,0.3951089,94243.0,94242.0,0.5076069]
[1746454255871,0.3608,94271.0,94242.0,0.5076069]
[1746454255872,0.3608,94256.0,94251.0,0.2652308]
[1746454256080,0.5824864,94255.0,94254.0,0.2121797]
[1746454256282,0.3703,94255.0,94254.0,0.2121797]
[1746454256577,0.2652117,94263.0,94262.0,0.2121639]
[1746454256776,0.36239295,94264.0,94263.0,0.2121617]
[1746454256985,0.57455235,94264.0,94263.0,0.2121617]
[1746454257480,0.36239295,94264.0,94263.0,0.2121617]
[1746454257878,0.57455235,94264.0,94263.0,0.2121617]
[1746454258071,0.36239295,94264.0,94263.0,0.2121617]
[1746454258470,0.57455235,94264.0,94263.0,0.2121617]
[1746454258670,0.74885235,94264.0,94263.0,0.2121617]
[1746454260276,0.2121639,94262.0,94261.0,0.1714]
[1746454261076,0.3956639,94262.0,94261.0,0.1714]
[1746454261576,0.2121932,94250.0,94249.0,0.2121921]
[1746454262285,0.2121932,94250.0,94249.0,0.3321921]
[1746454262480,0.2121769,94257.0,94253.0,0.0530458]
[1746454262686,0.0530412,94262.0,94261.0,0.053041]
[1746454262881,0.3182577,94262.0,94261.0,0.2652027]
[1746454263185,0.3182577,94262.0,94261.0,0.2121617]
[1746454263488,0.6805577,94262.0,94261.0,0.2121617]
[1746454263677,0.0530451,94255.0,94248.0,0.0530487]
[1746454263880,0.3608,94249.0,94221.0,0.3608]
[1746454264081,0.2122495,94224.0,94223.0,0.1759]
[1746454264380,0.2122495,94224.0,94223.0,0.3958517]
[1746454264576,0.2122495,94224.0,94223.0,0.1836]
[1746454264781,0.3636,94225.0,94216.0,0.1801]
[1746454264782,0.2122517,94223.0,94218.0,0.0530653]
[1746454264979,0.2122517,94223.0,94216.0,0.1801]
[1746454264980,0.3916517,94223.0,94219.0,0.0530648]
[1746454265181,0.3916517,94223.0,94219.0,0.2653234]
[1746454265376,0.3916517,94223.0,94219.0,0.2122586]
[1746454265577,0.3916517,94223.0,94220.0,0.2122572]
[1746454266080,0.3916517,94223.0,94218.0,0.0530657]
[1746454266277,0.4138592,94230.0,94220.0,0.0530645]
[1746454266278,0.3608,94230.0,94220.0,0.0530645]
[1746454266477,0.2122406,94232.0,94231.0,0.2122292]
[1746454266681,0.2652986,94232.0,94231.0,0.2122292]
[1746454266885,0.2653112,94227.0,94226.0,0.2122386]
[1746454267074,0.0530617,94227.0,94223.0,0.1836]
[1746454267281,0.2122495,94224.0,94223.0,0.3958517]
[1746454267685,0.5714495,94224.0,94223.0,0.3958517]
[1746454268778,0.2122517,94223.0,94222.0,0.00159198]
[1746454269087,0.5675517,94223.0,94222.0,0.00159198]
[1746454269282,0.0530617,94226.0,94222.0,0.00159198]
[1746454269283,0.3608,94229.0,94222.0,0.00159198]
[1746454269480,0.3553,94240.0,94239.0,0.2122157]
[1746454269679,0.3608,94257.0,94233.0,0.07752]
[1746454269877,0.2121648,94262.0,94261.0,0.2121617]
[1746454270488,0.5753648,94262.0,94261.0,0.2121617]
[1746454270783,0.2121662,94261.0,94260.0,0.1775]
[1746454271185,0.0530437,94258.0,94251.0,0.0530471]
[1746454271384,0.2121864,94254.0,94253.0,0.2652226]
[1746454271579,0.5729864,94254.0,94253.0,0.2652226]
[1746454271785,0.5753864,94254.0,94253.0,0.2652226]
[1746454272081,0.9361864,94254.0,94253.0,0.2652226]
[1746454272284,0.3632,94254.0,94253.0,0.2652226]
[1746454272486,0.0530418,94261.0,94259.0,0.2121684]
[1746454272689,0.3886617,94263.0,94262.0,0.2121617]
[1746454272876,0.1765,94263.0,94262.0,0.2121617]
[1746454273084,0.001,94266.0,94263.0,0.2121617]
[1746454273285,0.1765,94265.0,94263.0,0.2121617]
[1746454273895,0.57455235,94264.0,94263.0,0.2121617]
[1746454274283,0.74875235,94264.0,94263.0,0.2121617]
[1746454274994,0.53659295,94264.0,94263.0,0.2121617]
[1746454275194,0.36239295,94264.0,94263.0,0.2121617]
[1746454275594,0.3608,94264.0,94263.0,0.2121617]
[1746454276189,0.3608,94264.0,94263.0,0.3321617]
[1746454276494,0.5729594,94264.0,94263.0,0.3321617]
[1746454277086,0.2652192,94261.0,94254.0,0.1833]
[1746454277286,0.2121707,94259.0,94258.0,0.2121707]
[1746454278594,0.3833707,94259.0,94258.0,0.2121707]
[1746454279195,0.265224,94257.0,94256.0,0.2652217]
[1746454279401,0.053046,94253.0,94246.0,0.4138489]
[1746454279604,0.053046,94253.0,94244.0,0.0530508]
[1746454279605,0.2122134,94240.0,94239.0,0.07752]
[1746454279895,0.2122382,94229.0,94220.0,0.07752]
[1746454280095,0.2122382,94229.0,94222.0,0.00159198]
[1746454280096,0.2122517,94223.0,94222.0,0.00159198]
[1746454282797,0.2122517,94223.0,94222.0,0.21384598]
[1746454282999,0.00790731,94223.0,94222.0,0.21384598]
[1746454283297,0.3599,94228.0,94225.0,0.2122472]
[1746454283298,0.2122464,94226.0,94225.0,0.2122472]
[1746454283690,0.1712,94228.0,94227.0,0.2122427]
[1746454283891,0.2122405,94228.0,94227.0,0.2653029]
[1746454284194,0.212237,94230.0,94229.0,0.212236]
[1746454284693,0.2122517,94223.0,94222.0,0.00159198]
[1746454285301,0.5730517,94223.0,94222.0,0.21384598]
[1746454285601,0.2122517,94223.0,94222.0,0.21384598]
[1746454285792,0.3608,94232.0,94225.0,0.0530613]
[1746454285998,0.5730353,94232.0,94231.0,0.2122337]
[1746454286499,0.7571353,94232.0,94231.0,0.2122337]
[1746454287105,0.2122382,94230.0,94229.0,0.2122365]
[1746454287399,0.0530589,94231.0,94227.0,0.0530605]
[1746454287400,0.2653056,94228.0,94227.0,0.0530605]
[1746454287601,0.2653056,94228.0,94227.0,0.2122427]
[1746454287799,0.383045,94228.0,94227.0,0.2122427]
[1746454287990,0.2122495,94224.0,94223.0,0.2653082]
[1746454288199,0.2122517,94223.0,94222.0,0.00159198]
[1746454288398,0.5696517,94223.0,94222.0,0.00159198]
[1746454289299,0.6896517,94223.0,94222.0,0.00159198]
[1746454290701,0.6896517,94223.0,94222.0,0.21384598]
[1746454291402,0.5696517,94223.0,94222.0,0.21384598]
[1746454291993,0.2122517,94223.0,94222.0,0.39064598]
[1746454293297,0.1883,94226.0,94223.0,0.2122517]
[1746454293606,0.53028,94286.0,94229.0,0.2122382]
[1746454293607,0.573036,94230.0,94229.0,0.2122382]
[1746454293800,0.3608,94230.0,94229.0,0.2122382]
[1746454294103,0.3604,94242.0,94241.0,0.2122112]
[1746454294295,0.5726119,94242.0,94241.0,0.2122112]
[1746454295194,0.5726119,94242.0,94241.0,0.3923112]
[1746454295706,0.5726119,94242.0,94241.0,0.1801]
[1746454295903,0.5726119,94242.0,94236.0,0.2122214]
[1746454295904,0.212218,94238.0,94237.0,0.2122194]
[1746454297201,0.0530529,94241.0,94240.0,0.2122112]
[1746454297202,0.212213,94241.0,94240.0,0.2122112]
[1746454297405,0.3608,94247.0,94246.0,0.2121999]
[1746454297611,0.5729977,94247.0,94246.0,0.2121999]
[1746454298100,0.5729977,94247.0,94246.0,0.5548999]
[1746454299401,0.5729977,94247.0,94246.0,0.3427]
[1746454299602,0.5729977,94247.0,94246.0,0.3821999]
[1746454299802,0.5729977,94247.0,94246.0,0.17]
[1746454300197,0.5729977,94247.0,94246.0,0.3821999]
[1746454302506,0.5729977,94247.0,94246.0,0.17]
[1746454302902,0.5729977,94247.0,94246.0,0.3821999]
[1746454303402,0.9311977,94247.0,94246.0,0.3821999]
[1746454303704,0.5729977,94247.0,94246.0,0.3821999]
[1746454304207,0.0079299,94248.0,94247.0,0.2121977]
[1746454304410,0.2121939,94249.0,94248.0,0.2121954]
[1746454304604,0.2121939,94249.0,94248.0,0.3840954]
[1746454304907,0.2121917,94250.0,94249.0,0.2121909]
[1746454305107,0.2121917,94250.0,94249.0,0.5559909]
[1746454306215,0.2121917,94250.0,94249.0,0.3840909]
[1746454306713,0.212227,94236.0,94235.0,0.2122156]
[1746454306910,0.2652831,94236.0,94235.0,0.2122156]
[1746454307109,0.2652831,94236.0,94235.0,0.3322156]
[1746454307406,0.3608,94262.0,94235.0,0.12]
[1746454307608,0.54958651,94252.0,94251.0,0.2121887]
[1746454307804,0.76177291,94252.0,94251.0,0.2121887]
[1746454308000,0.2121887,94251.0,94250.0,0.3467]
[1746454308206,0.3843887,94251.0,94250.0,0.3867909]
[1746454308406,0.5546887,94251.0,94250.0,0.3867909]
[1746454308604,0.5546887,94251.0,94250.0,0.1746]
[1746454309209,0.2122022,94245.0,94244.0,0.2122016]
[1746454309411,0.2122089,94242.0,94241.0,0.3843112]
[1746454309714,0.5730089,94242.0,94241.0,0.3843112]
[1746454310410,0.7572089,94242.0,94241.0,0.1721]
[1746454310615,0.2122157,94239.0,94238.0,0.2122172]
[1746454310820,0.2122337,94231.0,94230.0,0.0772]
[1746454311012,0.2122517,94223.0,94216.0,0.07688]
[1746454311219,0.21229,94206.0,94205.0,0.57415381]
[1746454311408,0.21229,94206.0,94205.0,0.36186151]
[1746454311609,0.21229,94206.0,94205.0,0.57415381]
[1746454311910,0.21229,94206.0,94205.0,0.00106151]
[1746454312410,0.39649,94206.0,94205.0,0.00106151]
[1746454315921,0.39649,94206.0,94205.0,0.21335381]
[1746454316116,0.3608,94215.0,94214.0,0.212272]
[1746454316307,0.2122724,94215.0,94214.0,0.265339]
[1746454316705,0.5597724,94215.0,94214.0,0.265339]
[1746454316909,0.5597724,94215.0,94214.0,0.448639]
[1746454317520,0.0015,94240.0,94220.0,0.0530641]
[1746454317717,0.0530607,94227.0,94222.0,0.212254]
[1746454318120,0.3387,94226.0,94222.0,0.332254]
[1746454318320,0.3387,94226.0,94222.0,0.698654]
[1746454318819,0.0530619,94225.0,94222.0,0.698654]
[1746454319426,0.5730517,94223.0,94222.0,0.698654]
[1746454320124,0.3608,94223.0,94222.0,0.698654]
[1746454320427,0.0530551,94237.0,94236.0,0.2122202]
[1746454320428,0.212222,94237.0,94236.0,0.2122202]
[1746454320817,0.567422,94237.0,94236.0,0.3847202]
[1746454321424,0.2122292,94233.0,94232.0,0.2122308]
[1746454321624,0.2122405,94228.0,94227.0,0.5627427]
[1746454322019,0.2122114,94241.0,94239.0,0.2122157]
[1746454322230,0.3494,94241.0,94239.0,0.2122157]
[1746454322424,0.2137134,94240.0,94239.0,0.2122157]
[1746454322725,0.3509,94240.0,94239.0,0.2122157]
[1746454322923,0.1814,94240.0,94239.0,0.2122157]
[1746454323620,0.3936134,94240.0,94239.0,0.2122157]
[1746454324022,0.2122202,94238.0,94237.0,0.2122192]
[1746454324214,0.2122472,94225.0,94224.0,0.3837425]
[1746454325129,0.2122472,94225.0,94224.0,0.5037425]
[1746454325530,0.2122472,94225.0,94224.0,0.12]
[1746454326329,0.2122833,94211.0,94210.0,0.0530697]
[1746454327123,0.2122833,94211.0,94210.0,0.1730697]
[1746454327524,0.2122833,94211.0,94210.0,0.3853366]
[1746454327730,0.2122833,94211.0,94210.0,0.12]
[1746454327928,0.5632833,94211.0,94210.0,0.12]
[1746454328234,0.2122855,94208.0,94207.0,0.2122863]
[1746454328428,0.21229,94206.0,94205.0,0.21335301]
[1746454328627,0.57309,94206.0,94205.0,0.00106151]
[1746454329129,0.74679,94206.0,94205.0,0.00106151]
[1746454331135,0.74679,94206.0,94205.0,0.21335381]
[1746454331330,0.57309,94206.0,94205.0,0.21335381]
[1746454331525,0.3608,94206.0,94205.0,0.21335381]
[1746454331721,0.3608,94214.0,94207.0,0.0530714]
[1746454331926,0.3184227,94212.0,94211.0,0.2122743]
[1746454332226,0.3184227,94212.0,94211.0,0.3813743]
[1746454332932,0.2122878,94207.0,94206.0,0.12]
[1746454333127,0.21229,94206.0,94205.0,0.21335321]
[1746454333333,0.57309,94206.0,94205.0,0.21335321]
[1746454334532,0.57309,94206.0,94205.0,0.00106151]
[1746454334732,0.57309,94206.0,94205.0,0.21335381]
[1746454336936,0.3608,94216.0,94215.0,0.2122698]
[1746454337534,0.35562555,94216.0,94215.0,0.2891498]
[1746454337930,0.3608,94253.0,94215.0,0.79381999]
[1746454338133,0.1699,94247.0,94239.0,0.5730157]
[1746454338332,0.3618,94266.0,94251.0,0.2121887]
[1746454338540,0.2121864,94252.0,94251.0,0.3608]
[1746454338741,0.2122134,94240.0,94239.0,0.3608]
[1746454339644,0.5534134,94240.0,94239.0,0.3608]
[1746454339940,0.5534134,94240.0,94239.0,0.5730157]
[1746454340240,0.34915481,94240.0,94239.0,0.5730157]
[1746454340545,0.00795481,94240.0,94239.0,0.5730157]
[1746454340739,0.0530522,94242.0,94241.0,0.2652561]
[1746454340938,0.0530522,94242.0,94241.0,0.4461561]
[1746454341142,0.3464,94245.0,94244.0,0.2122044]
[1746454341143,0.5586022,94245.0,94244.0,0.2122044]
[1746454341335,0.1713,94245.0,94244.0,0.5730044]
[1746454341535,0.2652441,94251.0,94250.0,0.2652336]
[1746454341844,0.2652441,94251.0,94250.0,0.2121864]
[1746454342237,0.344,94251.0,94250.0,0.3937864]
[1746454342435,0.5561887,94251.0,94250.0,0.5610864]
[1746454342641,0.344,94251.0,94250.0,0.5610864]
[1746454343133,0.56410211,94251.0,94250.0,0.5610864]
[1746454343736,0.35191341,94251.0,94250.0,0.5610864]
[1746454344148,0.56410211,94251.0,94250.0,0.5610864]
[1746454345547,0.00791341,94251.0,94250.0,0.5610864]
[1746454345750,0.2121887,94251.0,94250.0,0.5610864]
[1746454346646,0.22025179,94251.0,94250.0,0.5610864]
[1746454346843,0.57005179,94251.0,94250.0,0.5610864]
[1746454347237,0.57005179,94251.0,94250.0,0.3937909]
[1746454347442,0.57005179,94251.0,94250.0,0.1816]
[1746454348537,0.57005179,94251.0,94244.0,0.3608]
[1746454348538,0.2122022,94245.0,94244.0,0.3608]
[1746454348743,0.2122022,94245.0,94244.0,0.5730044]
[1746454348939,0.2122022,94245.0,94239.0,0.2122156]
[1746454349147,0.2122089,94242.0,94241.0,0.2888112]
[1746454349347,0.0530524,94242.0,94236.0,0.3608]
[1746454349548,0.2122202,94237.0,94236.0,0.3608]
[1746454350048,0.00641545,94240.0,94225.0,0.2122464]
[1746454350244,0.0530524,94242.0,94225.0,0.2122464]
[1746454350245,0.2122495,94226.0,94225.0,0.2122464]
[1746454350647,0.2122472,94225.0,94224.0,0.3829495]
[1746454350848,0.5566472,94225.0,94224.0,0.3829495]
[1746454351758,0.5566472,94225.0,94224.0,0.1707]
[1746454351953,0.2122517,94223.0,94222.0,0.00159198]
[1746454352257,0.5730517,94223.0,94222.0,0.00159198]
[1746454352555,0.6791837,94223.0,94222.0,0.00159198]
[1746454352751,1.0409837,94223.0,94222.0,0.00159198]
[1746454353257,1.1609837,94223.0,94222.0,0.00159198]
[1746454353852,0.212281,94210.0,94209.0,0.3608]
[1746454354262,0.21229,94206.0,94205.0,0.00106151]
[1746454355448,0.21229,94206.0,94205.0,0.57415381]
[1746454356161,0.21229,94206.0,94205.0,0.74145381]
[1746454358154,0.21229,94206.0,94205.0,0.52916151]